bitfinex-derivatives/quotes_ETHF0:USTF0_20250331
["timestamp","ask_amount","ask_price","bid_price","bid_amount"]
[1743442513141,1.4478,1834.6,1833.5,5.93497]
[1743442513142,2.72575,1834.5,1833.5,5.93497]
[1743442513449,2.72575,1834.5,1833.6,0.7247]
[1743442513450,3.2078,1834.0,1833.6,0.7247]
[1743442513641,1.09077,1833.7,1833.6,1.4557]
[1743442513942,1.09077,1833.7,1832.9,9.706]
[1743442513943,1.09103,1833.3,1832.9,9.706]
[1743442514149,1.09097,1833.4,1833.0,2.2043]
[1743442514341,3.2078,1833.5,1833.4,1.09095]
[1743442514541,0.00815992,1833.8,1833.7,1.09077]
[1743442516049,0.00815992,1833.8,1833.7,2.57217]
[1743442517848,4.6753,1834.2,1834.1,1.09054]
[1743442518045,4.66048354,1834.2,1834.1,1.09054]
[1743442518546,3.2078,1834.2,1834.1,1.09054]
[1743442519245,3.2078,1834.2,1834.1,2.50354]
[1743442519745,0.00818286,1834.3,1834.2,1.09048]
[1743442519938,4.30640286,1834.3,1834.2,1.413]
[1743442520459,3.21598286,1834.3,1834.2,2.50348]
[1743442520846,0.00818286,1834.3,1834.2,2.50348]
[1743442521046,1.09860286,1834.3,1834.2,2.50348]
[1743442521550,0.00818286,1834.3,1834.2,2.50348]
[1743442521954,1.50018286,1834.3,1834.2,2.50348]
[1743442522352,2.59060286,1834.3,1834.2,2.50348]
[1743442522653,5.79840286,1834.3,1834.2,2.50348]
[1743442524246,0.00818286,1834.3,1834.2,2.50348]
[1743442525054,3.2078,1834.7,1834.2,13.619]
[1743442525354,1.09015,1834.8,1834.7,1.09012]
[1743442525763,2.54955,1834.8,1834.7,1.09012]
[1743442526247,1.09018,1834.7,1834.6,2.498]
[1743442526450,2.54958,1834.7,1834.6,2.498]
[1743442527050,2.54958,1834.7,1834.5,0.7244]
[1743442527051,1.09024,1834.6,1834.5,1.81464]
[1743442527249,2.51714,1834.6,1834.5,1.81464]
[1743442527657,1.4269,1834.6,1834.5,1.81464]
[1743442527849,2.51714,1834.6,1834.5,1.81464]
[1743442528048,1.4269,1834.6,1834.5,1.81464]
[1743442528249,1.09038,1834.4,1834.3,1.09035]
[1743442528857,2.51728,1834.4,1834.3,1.09035]
[1743442529759,1.09042,1834.3,1834.2,2.56908]
[1743442529955,5.74432,1834.3,1834.2,2.56908]
[1743442530355,1.09048,1834.2,1834.1,2.55349]
[1743442530553,4.29826,1834.3,1834.2,1.09048]
[1743442530953,1.09046,1834.3,1834.2,1.09048]
[1743442531356,1.09046,1834.3,1834.2,2.48628]
[1743442534256,1.09046,1834.3,1834.2,3.21437018]
[1743442534461,1.09042,1834.3,1834.2,3.21441503]
[1743442535958,1.78704,1834.6,1834.5,1.0903]
[1743442536154,0.6968,1834.6,1834.5,1.81932542]
[1743442536463,1.78704,1834.6,1834.5,1.81932542]
[1743442537359,1.78704,1834.6,1834.5,0.72902542]
[1743442537561,1.78704,1834.6,1834.5,1.81932542]
[1743442537955,1.78704,1834.6,1834.5,0.72902542]
[1743442538155,1.78704,1834.6,1834.5,1.81932542]
[1743442538659,1.78704,1834.6,1834.5,0.72902542]
[1743442538964,1.78704,1834.6,1834.3,1.09038]
[1743442538965,1.09043,1834.4,1834.3,1.09038]
[1743442539161,1.09043,1834.4,1834.3,1.82000823]
[1743442539754,1.09043,1834.4,1834.3,0.72962823]
[1743442539958,1.09054,1834.1,1834.0,0.00818286]
[1743442540155,1.09077,1833.7,1833.5,1.09087]
[1743442540362,3.2078,1833.6,1833.2,3.94896206]
[1743442540557,1.09095,1833.4,1833.3,1.82105452]
[1743442540862,1.09095,1833.4,1833.3,0.73006452]
[1743442541258,1.09104,1833.3,1832.8,5.93597]
[1743442541565,4.29878,1833.4,1833.3,1.09101]
[1743442541756,1.09101,1833.3,1833.2,1.09922286]
[1743442541957,1.09101,1833.3,1833.2,0.73786462]
[1743442542154,1.09101,1833.3,1833.2,0.00818286]
[1743442543662,1.09117,1833.1,1832.6,3.9181]
[1743442543864,1.5044,1833.0,1832.8,1.4004]
[1743442544065,7.1078,1832.9,1832.5,1.09144]
[1743442544364,3.2078,1832.6,1832.1,1.4004]
[1743442544559,1.09157,1832.4,1832.2,0.72789603]
[1743442544759,1.5044,1832.3,1832.2,1.09164]
[1743442545067,1.5044,1832.3,1832.2,1.09167]
[1743442545366,1.5044,1832.3,1832.1,1.4004]
[1743442545568,1.09178,1832.1,1831.8,3.2078]
[1743442545760,2.54121,1832.0,1831.8,4.6029]
[1743442545960,1.4494,1832.0,1831.8,5.69478]
[1743442546159,1.4494,1832.0,1830.7,5.55780045]
[1743442546160,7.1572,1832.0,1831.0,0.5464]
[1743442546357,3.2078,1831.5,1831.1,0.72555979]
[1743442546553,4.29991,1831.5,1831.2,1.09224]
[1743442546759,3.2078,1831.3,1830.7,3.978]
[1743442546960,3.2078,1831.1,1830.8,2.12088941]
[1743442547168,3.2078,1831.1,1831.0,1.09238]
[1743442547362,7.1948,1831.3,1830.9,1.3951]
[1743442547562,0.00818286,1831.5,1831.0,5.93876]
[1743442547765,0.00818286,1831.5,1831.3,1.09218]
[1743442548061,0.00818286,1831.5,1831.4,2.48184]
[1743442548267,0.00818286,1831.5,1831.2,1.09223]
[1743442548465,3.2078,1831.4,1830.9,10.42946386]
[1743442548663,3.2078,1831.4,1831.0,1.3897]
[1743442548868,4.30807286,1831.5,1831.3,1.09218]
[1743442549069,4.30807286,1831.5,1831.4,1.3897]
[1743442549270,4.30807286,1831.5,1830.9,3.93012473]
[1743442549271,3.21598286,1831.5,1830.9,3.93012473]
[1743442549460,3.2078,1831.2,1831.0,2.48205]
[1743442549665,4.3001,1831.2,1831.0,1.3897]
[1743442549863,4.018,1831.1,1830.9,0.72232473]
[1743442550074,4.30018,1831.0,1830.9,0.72232473]
[1743442550369,5.71158,1831.0,1830.9,0.72232473]
[1743442551166,8.21158,1831.0,1830.9,4.73e-06]
[1743442551469,1.09302,1830.0,1829.8,1.09308]
[1743442551664,3.2078,1829.9,1829.8,1.09308]
[1743442551863,3.2078,1830.3,1829.9,1.3607]
[1743442552057,3.2078,1830.3,1830.1,1.09288]
[1743442552264,5.77668286,1830.3,1830.2,1.3607]
[1743442552862,0.00818286,1830.3,1830.2,2.45356]
[1743442553066,0.00818286,1830.3,1830.2,5.66136]
[1743442553271,3.2078,1830.8,1830.1,12.4383]
[1743442553463,1.4679,1830.6,1830.5,1.09266]
[1743442553663,3.2078,1830.8,1830.7,1.09256]
[1743442553863,64.85122,1831.0,1830.4,1.3607]
[1743442554070,3.2078,1831.0,1830.9,1.09244]
[1743442555472,0.00818286,1831.1,1831.0,1.09238]
[1743442555771,0.00818286,1831.1,1831.0,2.49238]
[1743442556664,3.2078,1831.5,1831.2,1.09226]
[1743442556869,3.2078,1831.5,1831.4,1.09214]
[1743442557375,3.2078,1831.5,1831.2,1.09225]
[1743442557671,3.2078,1831.5,1830.6,10.11426]
[1743442557672,1.5114,1831.4,1830.6,3.2078]
[1743442557979,2.73159,1830.6,1829.9,1.09298]
[1743442558267,3.2078,1830.0,1829.8,2.1623]
[1743442558471,4.30078,1830.0,1829.9,1.4618]
[1743442558667,4.30078,1830.0,1829.9,2.55484]
[1743442558871,4.30078,1830.0,1829.9,1.4618]
[1743442559067,3.2078,1830.0,1829.9,2.55484]
[1743442559273,4.30078,1830.0,1829.9,1.4618]
[1743442559475,1.09296,1830.1,1829.9,2.55482]
[1743442559771,3.2078,1830.0,1829.9,2.55484]
[1743442560070,10.11609,1830.2,1830.0,1.09296]
[1743442560372,1.09308,1829.9,1829.7,1.10131286]
[1743442560575,1.0931,1829.8,1829.7,0.00818286]
[1743442560873,5.3941,1829.8,1829.7,0.00818286]
[1743442561075,6.7812,1829.8,1829.7,0.00818286]
[1743442561273,3.2078,1829.9,1829.7,0.00818286]
[1743442561274,3.2078,1829.9,1829.8,1.0931]
[1743442561466,3.2078,1830.1,1830.0,1.09298]
[1743442561862,3.2078,1830.3,1830.2,1.09286]
[1743442562065,3.2078,1830.3,1830.1,1.5041]
[1743442562066,4.30064,1830.3,1830.1,1.5041]
[1743442562273,3.2078,1830.3,1830.2,1.09286]
[1743442562575,0.00818286,1830.4,1830.3,1.0928]
[1743442564076,2.86e-06,1830.4,1830.3,4.3006]
[1743442564273,2.86e-06,1830.4,1830.3,1.0928]
[1743442565484,2.86e-06,1830.4,1830.3,2.4638]
[1743442569275,2.86e-06,1830.4,1830.3,4.9638]
[1743442569482,2.86e-06,1830.4,1830.3,15.38226801]
[1743442569686,8.43968286,1830.4,1829.7,5.94874286]
[1743442569976,3.2078,1830.0,1829.9,1.09304]
[1743442570181,4.30062,1830.3,1829.8,1.4975]
[1743442570581,3.2078,1830.3,1830.2,1.09286]
[1743442570783,2.86e-06,1830.4,1830.3,1.0928]
[1743442571678,2.86e-06,1830.4,1830.3,11.98845878]
[1743442571884,2.86e-06,1830.4,1830.3,13.48595878]
[1743442572179,2.86e-06,1830.4,1830.3,23.19195878]
[1743442573185,1.09227,1831.2,1831.0,1.09233]
[1743442573382,1.09227,1831.2,1831.1,1.4345]
[1743442573776,3.2078,1831.3,1831.1,1.4345]
[1743442573981,4.6443,1831.5,1831.1,1.4345]
[1743442574281,0.00818286,1831.4,1831.3,1.09218]
[1743442574782,0.00818286,1831.4,1831.3,1.81347027]
[1743442575280,0.00818286,1831.4,1831.3,1.81413733]
[1743442575876,1.4189,1831.8,1831.7,1.09196]
[1743442576076,4.29964,1831.9,1831.7,1.813742]
[1743442576381,4.29964,1831.9,1831.4,2.73023]
[1743442576382,3.2078,1831.9,1831.8,1.0919]
[1743442576784,3.2078,1831.9,1831.8,1.81391579]
[1743442576978,3.2078,1832.1,1831.8,0.72201579]
[1743442577185,0.00818286,1832.0,1831.9,1.09179]
[1743442577682,0.00818286,1832.0,1831.9,1.81330411]
[1743442577988,0.00818286,1832.0,1831.9,1.09179]
[1743442580981,0.00818286,1832.0,1831.9,1.81239026]
[1743442581186,3.2078,1832.3,1832.2,1.09167]
[1743442581984,3.2078,1832.5,1832.4,1.09155]
[1743442584386,1.09155,1832.4,1832.3,0.00818286]
[1743442584590,2.52825,1832.4,1832.3,0.00818286]
[1743442585790,2.52825,1832.4,1832.3,1.09979286]
[1743442586088,1.4367,1832.4,1832.3,1.09979286]
[1743442587087,2.52825,1832.4,1832.3,1.09979286]
[1743442587288,1.4367,1832.4,1832.3,1.09979286]
[1743442587681,3.2078,1832.5,1832.3,0.00818286]
[1743442587887,4.29929,1832.5,1832.4,1.09155]
[1743442588084,4.29934,1832.5,1832.4,1.09155]
[1743442588589,3.2078,1832.5,1832.4,1.09155]
[1743442589089,0.00818286,1832.6,1832.5,1.09149]
[1743442591189,1.09155,1832.4,1832.3,1.09979286]
[1743442591389,4.29935,1832.4,1832.3,0.00818286]
[1743442591794,4.29935,1832.4,1832.3,1.09979286]
[1743442591991,4.29935,1832.4,1832.3,0.00818286]
[1743442592591,4.29935,1832.4,1832.3,1.09979286]
[1743442592790,5.74545,1832.4,1832.3,0.00818286]
[1743442592986,6.46385,1832.4,1832.3,0.00818286]
[1743442593588,2.72938,1832.1,1831.4,0.71946011]
[1743442593780,3.2078,1831.5,1831.4,2.55354]
[1743442594181,4.7113,1831.5,1831.4,2.55354]
[1743442597189,1.09214,1831.4,1831.3,0.00818286]
[1743442597396,2.56804,1831.4,1831.3,0.00818286]
[1743442598291,2.73054,1831.3,1830.6,2.93225]
[1743442598496,3.2078,1831.0,1830.9,1.0924]
[1743442598692,4.30018,1831.0,1830.9,1.0924]
[1743442598895,4.6837,1831.0,1830.9,1.0924]
[1743442599291,5.7761,1831.0,1830.8,1.09245]
[1743442599490,5.7761,1831.0,1830.9,1.09244]
[1743442599491,4.6837,1831.0,1830.9,1.09244]
[1743442600296,4.6837,1831.0,1830.9,2.50364]
[1743442600697,3.2078,1831.0,1830.9,2.50364]
[1743442600995,0.7451,1831.3,1831.2,1.09226]
[1743442601297,3.2254,1831.3,1831.1,1.0923]
[1743442601495,3.2078,1831.2,1831.1,1.0923]
[1743442601796,3.21598286,1831.6,1831.5,1.09208]
[1743442602899,0.00818286,1831.6,1831.5,1.09208]
[1743442603797,4.6419,1832.0,1831.9,1.09184]
[1743442604191,3.2078,1832.0,1831.9,1.09184]
[1743442604494,3.2078,1832.2,1832.1,1.09173]
[1743442607090,3.2078,1832.2,1832.0,1.37958286]
[1743442607091,1.09173,1832.1,1832.0,1.37958286]
[1743442607300,2.49393,1832.1,1832.0,0.00818286]
[1743442607694,1.4022,1832.1,1832.0,0.00818286]
[1743442607996,2.49393,1832.1,1832.0,0.00818286]
[1743442610798,2.49393,1832.1,1831.2,4.15224]
[1743442610799,2.7297,1831.9,1831.2,4.15224]
[1743442610992,1.09214,1831.4,1831.3,1.09218]
[1743442611195,3.2078,1831.4,1831.3,1.09218]
[1743442611393,4.29994,1831.4,1831.3,1.4273]
[1743442611597,5.77904,1831.4,1831.3,2.5195]
[1743442611800,4.6869,1831.4,1831.3,2.5195]
[1743442611994,5.77904,1831.4,1831.3,1.4273]
[1743442612190,1.0922,1831.3,1831.2,0.00818286]
[1743442612395,1.4791,1831.3,1831.2,1.10044286]
[1743442612595,3.2078,1831.4,1831.3,1.0922]
[1743442612797,3.2078,1831.4,1831.3,2.5847]
[1743442614295,3.2078,1831.4,1831.3,4.0491681]
[1743442614705,4.6869,1831.7,1831.6,1.09202]
[1743442614899,5.77887,1831.7,1831.6,1.09202]
[1743442616493,4.6869,1831.7,1831.6,1.09202]
[1743442616701,3.2078,1831.7,1831.6,1.09202]
[1743442617102,1.3772,1831.9,1831.8,1.0919]
[1743442617298,4.585,1831.9,1831.8,1.0919]
[1743442617503,3.2078,1831.9,1831.8,1.0919]
[1743442617801,4.585,1832.1,1832.0,1.09179]
[1743442618395,3.2078,1832.1,1832.0,1.09179]
[1743442619396,4.29953,1832.1,1832.0,1.09179]
[1743442619597,3.2078,1832.1,1832.0,1.09179]
[1743442620597,3.2078,1832.1,1831.9,1.4923]
[1743442620598,3.2078,1832.1,1831.7,5.93766]
[1743442620796,3.2078,1831.9,1831.8,1.81583349]
[1743442621507,3.2078,1831.9,1831.8,1.0919]
[1743442621697,5.75134,1831.9,1831.8,1.0919]
[1743442622002,4.6595,1831.9,1831.8,1.0919]
[1743442622200,5.75138,1831.9,1831.8,1.0919]
[1743442622401,5.7514,1831.9,1831.8,1.0919]
[1743442622607,4.6595,1831.9,1831.4,1.5]
[1743442622810,4.29987,1831.6,1831.5,1.4844]
[1743442623107,1.09217,1831.4,1831.3,1.09217]
[1743442623301,3.2078,1831.4,1831.3,2.57657]
[1743442624295,4.5884,1831.4,1831.3,2.57657]
[1743442624505,5.68054,1831.4,1831.3,2.57657]
[1743442624906,4.5884,1831.4,1831.3,2.57657]
[1743442625106,5.68054,1831.4,1831.3,2.57657]
[1743442625710,4.5884,1831.4,1831.3,2.57657]
[1743442626001,4.5884,1831.4,1831.3,1.09217]
[1743442626601,5.68054,1831.4,1831.3,1.09217]
[1743442627002,3.2078,1831.6,1831.3,2.73051]
[1743442627208,3.2078,1831.6,1831.5,1.09208]
[1743442627602,1.3877,1831.7,1831.6,1.09202]
[1743442627798,1.09208,1831.5,1831.4,1.4333]
[1743442628007,4.5955,1831.7,1831.4,1.4333]
[1743442628203,4.5955,1831.7,1831.6,1.09202]
[1743442629505,5.68746,1831.7,1831.6,1.09202]
[1743442629909,4.5955,1831.7,1831.6,1.09202]
[1743442630410,5.68746,1831.7,1831.6,1.09202]
[1743442630802,5.68746,1831.7,1831.4,4.1636]
[1743442630803,1.09204,1831.6,1831.5,1.09204]
[1743442631003,1.09208,1831.5,1831.4,1.4333]
[1743442631206,1.09208,1831.5,1831.3,1.09216]
[1743442631207,1.09214,1831.4,1831.3,1.09216]
[1743442631404,2.51574,1831.4,1831.3,1.09216]
[1743442633912,1.0922,1831.3,1831.2,1.47928286]
[1743442634212,5.6773,1831.3,1831.2,1.47928286]
[1743442634401,5.6773,1831.3,1831.2,2.57154286]
[1743442635001,5.6773,1831.3,1831.2,0.00818286]
[1743442635410,1.09238,1831.0,1830.9,1.09242]
[1743442635610,4.30018,1831.0,1830.9,1.09242]
[1743442636114,4.30024,1831.0,1830.9,1.09244]
[1743442636711,3.2078,1831.0,1830.9,1.09244]
[1743442636910,0.00818286,1831.1,1831.0,1.09238]
[1743442637107,0.00818286,1831.1,1831.0,2.50948]
[1743442637314,1.10050286,1831.1,1831.0,2.50948]
[1743442637514,0.00818286,1831.1,1831.0,2.50948]
[1743442637715,1.10050286,1831.1,1831.0,2.50948]
[1743442638106,0.00818286,1831.1,1831.0,2.50948]
[1743442638316,1.10050286,1831.1,1831.0,2.50948]
[1743442638820,0.00818286,1831.1,1831.0,2.50948]
[1743442639118,1.10050286,1831.1,1831.0,2.50948]
[1743442639317,0.00818286,1831.1,1831.0,2.50948]
[1743442639711,1.10050286,1831.1,1831.0,2.50948]
[1743442640416,2.47190286,1831.1,1831.0,2.50948]
[1743442640616,0.00818286,1831.1,1831.0,2.50948]
[1743442641019,1.10050286,1831.1,1831.0,2.50948]
[1743442641319,0.00818286,1831.1,1831.0,2.50948]
[1743442641707,0.00818286,1831.1,1831.0,3.23446712]
[1743442642815,1.3714,1831.5,1831.0,11.74291712]
[1743442643013,4.29983,1831.6,1831.5,1.09208]
[1743442644319,3.2078,1831.6,1831.5,1.09208]
[1743442644820,3.2078,1831.6,1831.5,1.81691661]
[1743442645009,0.00818286,1831.7,1831.5,0.72483661]
[1743442645213,0.00818286,1831.7,1831.6,3.2433041]
[1743442645419,0.00818286,1831.7,1831.6,3.9255041]
[1743442648822,0.00818286,1831.7,1831.6,3.9253388]
[1743442649216,0.00818286,1831.7,1831.6,3.92552928]
[1743442650923,1.10014286,1831.7,1831.6,2.51852]
[1743442651117,1.43748286,1831.7,1831.6,2.51852]
[1743442651314,2.52944286,1831.7,1831.6,2.51852]
[1743442651520,1.43748286,1831.7,1831.6,2.51852]
[1743442652119,1.43748286,1831.7,1831.6,3.24329688]
[1743442652627,1.43748286,1831.7,1831.6,3.24328746]
[1743442652923,0.00818286,1831.7,1831.6,3.24328746]
[1743442653421,0.00818286,1831.7,1831.6,2.15126746]
[1743442653627,0.00818286,1831.7,1831.4,1.09214]
[1743442653628,1.09208,1831.5,1831.4,1.09214]
[1743442653822,3.2078,1831.5,1831.4,1.09214]
[1743442654423,1.4293,1831.6,1831.5,1.09208]
[1743442654927,3.21598286,1831.7,1831.6,1.09202]
[1743442655223,0.00818286,1831.7,1831.6,1.09202]
[1743442655617,3.21598286,1831.7,1831.6,1.09202]
[1743442656023,5.67764286,1831.7,1831.6,1.09202]
[1743442656227,4.58568286,1831.7,1831.6,1.09202]
[1743442656429,5.67764286,1831.7,1831.6,1.09202]
[1743442656631,4.58568286,1831.7,1831.6,1.09202]
[1743442657323,4.58568286,1831.7,1831.5,1.09207]
[1743442657628,1.09208,1831.5,1831.4,1.09214]
[1743442657822,4.58568286,1831.7,1831.6,1.09202]
[1743442657823,2.46989286,1831.7,1831.6,1.09202]
[1743442658017,4.58568286,1831.7,1831.4,1.3727]
[1743442658219,4.58568286,1831.7,1831.4,2.46484]
[1743442658220,3.2078,1831.5,1831.4,2.46484]
[1743442658420,3.2078,1831.5,1831.4,3.18952667]
[1743442658628,5.67770286,1831.7,1831.6,1.09202]
[1743442660730,1.09206,1831.6,1831.5,1.09204]
[1743442660925,2.58176,1831.6,1831.5,1.09204]
[1743442661227,3.21598286,1831.7,1831.6,1.09202]
[1743442661228,4.30799286,1831.7,1831.6,1.09202]
[1743442662527,1.09208,1831.5,1831.4,1.3727]
[1743442662730,4.29988,1831.5,1831.4,2.46484]
[1743442663128,5.78958,1831.5,1831.4,2.46484]
[1743442663930,4.6975,1831.5,1831.4,2.46484]
[1743442664122,3.21598286,1831.7,1831.6,1.09202]
[1743442664826,0.00818286,1831.7,1831.6,1.81675136]
[1743442665030,0.00818286,1831.7,1831.6,4.03285136]
[1743442665231,3.21598286,1831.7,1831.6,3.3226632]
[1743442665437,3.21598286,1831.7,1831.6,3.32268808]
[1743442665728,3.21598286,1831.7,1831.6,2.59792]
[1743442665927,5.70804286,1831.7,1831.6,1.5059]
[1743442666130,2.73007,1831.6,1831.0,0.7027]
[1743442666428,1.09217,1831.4,1831.3,1.4767]
[1743442666628,4.29997,1831.4,1831.3,1.4767]
[1743442666830,4.29997,1831.4,1831.3,2.5689]
[1743442667029,4.29997,1831.4,1831.3,1.4767]
[1743442667233,3.2078,1831.4,1831.3,2.5689]
[1743442667631,4.6367,1831.4,1831.3,2.5689]
[1743442667824,1.4289,1831.4,1831.3,2.5689]
[1743442668020,4.6367,1831.4,1831.3,2.5689]
[1743442668331,4.6367,1831.4,1831.3,3.29449489]
[1743442669123,1.4289,1831.4,1831.3,3.29449489]
[1743442670029,1.4289,1831.4,1831.3,3.29469565]
[1743442671237,4.6367,1831.4,1831.3,3.29469565]
[1743442671743,1.4289,1831.4,1831.3,3.29469565]
[1743442672137,1.4289,1831.4,1831.3,3.29523982]
[1743442672138,4.6367,1831.4,1831.3,3.29523982]
[1743442672442,3.2078,1831.4,1831.3,3.29523982]
[1743442673033,5.69994,1831.4,1831.3,3.29523982]
[1743442673237,4.6078,1831.4,1831.3,3.29523982]
[1743442673436,4.6078,1831.4,1831.3,2.5689]
[1743442673843,4.6078,1831.4,1831.3,3.2952922]
[1743442674044,4.6078,1831.4,1831.3,3.29529229]
[1743442674345,4.6078,1831.4,1831.3,2.5689]
[1743442674534,4.6078,1831.4,1831.3,3.29520532]
[1743442675843,4.6078,1831.4,1831.3,3.29516593]
[1743442676042,3.21598286,1831.7,1831.6,1.09202]
[1743442676351,3.21598286,1831.7,1831.6,1.81822148]
[1743442676750,0.00818286,1831.7,1831.6,1.81822148]
[1743442676943,3.21598286,1831.7,1831.6,1.81822148]
[1743442677143,0.00818286,1831.7,1831.6,1.81822148]
[1743442677347,3.21598286,1831.7,1831.6,1.81822148]
[1743442677547,4.68208286,1831.7,1831.6,1.81822148]
[1743442677753,4.68208286,1831.7,1831.6,1.81840691]
[1743442678250,4.68208286,1831.7,1831.6,1.81840642]
[1743442678448,4.68208286,1831.7,1831.6,1.81850933]
[1743442678650,3.21598286,1831.7,1831.6,1.81850933]
[1743442679951,3.21598286,1831.7,1831.6,1.81866341]
[1743442680447,2.72932,1832.1,1831.6,1.81866341]
[1743442680448,3.2078,1832.3,1832.2,1.09167]
[1743442680849,4.29941,1832.3,1832.0,2.72947]
[1743442681049,1.09167,1832.2,1831.9,2.72947]
[1743442681244,4.29944,1832.3,1831.9,2.72947]
[1743442681446,3.21598286,1832.3,1832.2,1.09167]
[1743442681850,5.77639286,1832.3,1832.2,1.09167]
[1743442682054,1.09167,1832.2,1832.1,2.50087]
[1743442682247,2.56047,1832.2,1832.1,2.50087]
[1743442682554,1.09179,1832.0,1831.9,1.09997286]
[1743442682848,1.09179,1832.0,1831.9,0.00818286]
[1743442683051,3.59179,1832.0,1831.9,0.00818286]
[1743442683254,5.77309,1832.0,1831.9,0.00818286]
[1743442684852,3.27309,1832.0,1831.9,0.00140624]
[1743442686447,1.09196,1831.7,1831.6,1.09198]
[1743442686659,4.29976,1831.7,1831.6,1.09198]
[1743442686950,5.4054,1831.8,1831.7,1.09196]
[1743442687249,6.4973,1831.8,1831.7,3.31712113]
[1743442687447,6.4973,1831.8,1831.7,2.59086]
[1743442688155,5.01211,1832.0,1831.9,1.09184]
[1743442688348,5.3634,1832.0,1831.9,1.09184]
[1743442688547,6.45519,1832.0,1831.9,1.09184]
[1743442690050,5.3634,1832.0,1831.9,1.09184]
[1743442690256,6.45519,1832.0,1831.9,1.09184]
[1743442691655,5.3634,1832.0,1831.9,1.09184]
[1743442691850,4.29959,1832.0,1831.9,1.09184]
[1743442692160,0.75528286,1832.3,1832.2,1.09167]
[1743442692455,0.00818286,1832.3,1832.2,1.09167]
[1743442692952,0.00818286,1832.3,1832.2,1.81722103]
[1743442693154,0.00818286,1832.3,1832.2,1.09167]
[1743442693455,1.09979286,1832.3,1832.2,1.09167]
[1743442693658,1.09979286,1832.3,1832.2,2.53067]
[1743442693952,0.00818286,1832.3,1832.2,2.53067]
[1743442696055,0.00818286,1832.3,1832.2,3.25513631]
[1743442696252,0.00818286,1832.3,1832.2,2.53067]
[1743442696559,0.00818286,1832.3,1832.2,3.25488146]
[1743442696853,0.00818286,1832.3,1832.2,3.25490342]
[1743442698459,1.39518286,1832.3,1832.2,2.53067]
[1743442698662,0.00818286,1832.3,1832.2,2.53067]
[1743442698859,0.00818286,1832.3,1832.2,3.25451063]
[1743442700054,1.09127,1832.9,1832.8,1.09129]
[1743442700462,2.56097,1832.9,1832.8,1.09129]
[1743442700957,31.47422477,1833.0,1832.9,1.09125]
[1743442701265,32.95210763,1833.0,1832.9,1.09125]
[1743442701756,26.45120763,1833.0,1832.9,1.09125]
[1743442702557,26.45120763,1833.0,1832.8,1.09126]
[1743442702761,28.91069763,1833.0,1832.9,1.4458]
[1743442703357,28.91069763,1833.0,1832.9,2.53705]
[1743442703958,5.67547286,1833.0,1832.9,2.53705]
[1743442704154,5.67547286,1833.0,1832.9,1.4458]
[1743442705364,1.09131,1832.8,1832.7,0.00818286]
[1743442705556,4.29911,1832.8,1832.7,0.00818286]
[1743442705754,4.29911,1832.8,1832.7,1.09955286]
[1743442706158,3.2078,1832.8,1832.7,1.09955286]
[1743442706761,4.29911,1832.8,1832.7,1.09955286]
[1743442706960,3.2078,1832.8,1832.7,1.09955286]
[1743442707161,9.59552286,1833.0,1832.9,1.09125]
[1743442707361,1.09125,1832.9,1832.8,1.4881]
[1743442707561,2.56505,1832.9,1832.8,2.57936]
[1743442707867,2.56505,1832.9,1832.8,2.57941]
[1743442709266,2.56505,1832.9,1832.8,1.4881]
[1743442709467,1.09131,1832.8,1832.7,0.00818286]
[1743442709762,5.72921,1832.8,1832.7,0.00818286]
[1743442709967,5.72921,1832.8,1832.7,1.09955286]
[1743442710167,5.72921,1832.8,1832.7,2.49265286]
[1743442710761,3.92818286,1833.0,1832.7,1.40128286]
[1743442710965,1.43828286,1833.0,1832.9,1.09125]
[1743442711164,2.52947286,1833.0,1832.9,1.09125]
[1743442711967,1.09131,1832.9,1832.8,1.09128]
[1743442712167,5.72671,1832.9,1832.8,1.09128]
[1743442712369,1.09131,1832.8,1832.7,2.49261286]
[1743442712563,2.51891,1832.8,1832.7,2.49261286]
[1743442712768,4.29908,1832.9,1832.8,1.09131]
[1743442713067,3.2078,1832.9,1832.8,1.09131]
[1743442713267,4.29905,1832.9,1832.8,1.09131]
[1743442713469,3.2078,1832.9,1832.8,1.09131]
[1743442713771,4.29905,1832.9,1832.8,1.09131]
[1743442713963,3.2078,1832.9,1832.8,1.09131]
[1743442714166,4.29905,1832.9,1832.8,1.80711]
[1743442714570,3.2078,1832.9,1832.8,1.80711]
[1743442714763,4.29905,1832.9,1832.8,1.80711]
[1743442715569,4.29905,1832.9,1832.8,1.09131]
[1743442716166,1.09131,1832.8,1832.7,2.49259286]
[1743442716364,1.09131,1832.8,1832.7,1.40128286]
[1743442716568,2.52901,1832.8,1832.7,2.49265286]
[1743442718273,1.09131,1832.8,1832.7,2.49265286]
[1743442718469,5.76709,1832.9,1832.8,1.09131]
[1743442718671,3.2078,1832.9,1832.8,1.09131]
[1743442718977,4.29905,1832.9,1832.8,1.09131]
[1743442719972,3.2078,1832.9,1832.8,1.09131]
[1743442720170,3.2078,1832.9,1832.8,1.81574992]
[1743442721179,3.2078,1832.9,1832.8,1.8165529]
[1743442723172,3.2078,1832.9,1832.8,1.81687711]
[1743442723575,3.2078,1832.9,1832.8,1.81703142]
[1743442727983,3.21598286,1833.0,1832.9,1.09125]
[1743442728179,3.21598286,1833.0,1832.9,3.21257142]
[1743442728879,3.21598286,1833.0,1832.9,3.21354929]
[1743442729078,5.72187286,1833.0,1832.9,1.09125]
[1743442729380,5.72192286,1833.0,1832.9,1.09125]
[1743442729780,4.63068286,1833.0,1832.9,1.81820524]
[1743442730679,3.21598286,1833.0,1832.9,1.09125]
[1743442730881,3.21598286,1833.0,1832.9,2.50028519]
[1743442731084,0.7514,1833.2,1833.1,1.09113]
[1743442731382,1.40899102,1833.3,1833.2,1.09107]
[1743442731681,1.40899102,1833.3,1833.2,3.28970519]
[1743442732187,4.6287,1833.5,1833.4,1.09095]
[1743442732386,3.2078,1833.5,1833.4,1.81746698]
[1743442732888,3.2078,1833.5,1833.4,3.2891536]